Workbook

Sheet Fastest 100
A1: Fastest players to reach 100 League goals in any ONE league (fewest games needed)
A3: Player | C3: Begining Career? | E3: Country | G3: Games | H3: Goal Ratio | I3: Source
A5: Fernando Peyroteo | C5: Yes | E5: Portugal | G5: 49 | H5: =100/G5 -> 2.040816327 | I5: https://www.ogol.com.br/jogador/fernando-peyroteo/29984
A6: George Smith | C6: Yes | E6: Australia | G6: 55 | H6: =100/G6 -> 1.818181818 | I6: https://twitter.com/FredericksBrent/status/1737957953339109383
A7: Josef Bican | C7: Yes | E7: Austria | G7: 60 | H7: =100/G7 -> 1.666666667 | I7: https://twitter.com/deivi_cisarro/status/1706003217304129594
A8: Isidro Lángara | C8: No | E8: Spain | G8: 80 | H8: =100/G8 -> 1.25 | I8: https://www.transfermarkt.com/isidro-langara/profil/spieler/135767
A9: Ernest Wilimowski | C9: Yes | E9: Poland | G9: 81 | H9: =100/G9 -> 1.234567901 | I9: https://twitter.com/acmilangregor/status/1706254396164579634
A10: Eusébio | C10: No | E10: Portugal | G10: 81 | H10: =100/G10 -> 1.234567901 | I10: https://www.ogol.com.br/jogador/eusebio
A11: Jack Hughes | C11: Yes | E11: Australia | G11: 87 | H11: =100/G11 -> 1.149425287 | I11: https://twitter.com/FredericksBrent/status/1736778329020068001
A12: Reginald Date | C12: Yes | E12: Australia | G12: 91 | H12: =100/G12 -> 1.098901099 | I12: https://twitter.com/FredericksBrent/status/1736781622391820450
A13: Cristiano Ronaldo | C13: No | E13: Spain | G13: 92 | H13: =100/G13 -> 1.086956522 | I13: https://www.messivsronaldo.app/match-histories/ronaldo-match-history/
A14: Héctor Yazalde | C14: No | E14: Portugal | G14: 100 | H14: =100/G14 -> 1 | I14: https://www.ogol.com.br/jogador/hector-yazalde/27104
A15: Josip Skoblar | C15: No | E15: France | G15: 100 | H15: =100/G15 -> 1 | I15: https://www.transfermarkt.com/josip-skoblar/profil/spieler/102785
A16: Abderrazak Hamdallah | C16: No | E16: Saudi Arabia | G16: 101 | H16: =100/G16 -> 0.9900990099 | I16: https://www.transfermarkt.com/abderrazak-hamdallah/profil/spieler/235052
A17: Dixie Dean | C17: No | E17: England | G17: 104 | H17: =100/G17 -> 0.9615384615 | I17: https://www.ogol.com.br/jogador/dixie-dean/35098
A18: David Halliday | C18: No | E18: England | G18: 104 | H18: =100/G18 -> 0.9615384615 | I18: https://www.ogol.com.br/jogador/david-halliday/208181
A19: Ferenc Puskás | C19: Special (banned 2 years) | E19: Spain | G19: 105 | H19: =100/G19 -> 0.9523809524 | I19: https://twitter.com/Bf2015Roly/status/1705749870001221857
A20: Alfredo Di Stefano | C20: No | E20: Spain | G20: 108 | H20: =100/G20 -> 0.9259259259 | I20: https://twitter.com/Bf2015Roly/status/1705749870001221857
A21: Gunnar Nordahl | C21: No | E21: Italy | G21: 110 | H21: =100/G21 -> 0.9090909091 | I21: https://www.transfermarkt.com/gunnar-nordahl/profil/spieler/140644
A22: Carlos Bianchi | C22: No | E22: France | G22: 110 | H22: =100/G22 -> 0.9090909091 | I22: https://www.transfermarkt.com/carlos-bianchi/profil/spieler/155070
A23: Jack Bowers | C23: No | E23: England | G23: 112 | H23: =100/G23 -> 0.8928571429 | I23: https://www.ogol.com.br/jogador/jack-bowers/360427
A24: Johan Cruyff | C24: Yes | E24: Holland | G24: 114 | H24: =100/G24 -> 0.8771929825 | I24: https://www.ogol.com.br/jogador/johan-cruyff
A25: Telmo Zarra | C25: Yes | E25: Spain | G25: 115 | H25: =100/G25 -> 0.8695652174 | I25: https://www.transfermarkt.com/telmo-zarra/profil/spieler/135777
A26: Zlatan Ibrahimovic | C26: No | E26: France | G26: 115 | H26: =100/G26 -> 0.8695652174 | I26: https://www.transfermarkt.com/zlatan-ibrahimovi%C4%87/profil/spieler/3455
A27: Sandor Kocsis | C27: Yes | E27: Hungary | G27: 116 | H27: =100/G27 -> 0.8620689655 | I27: https://twitter.com/Bf2015Roly/status/1732836372124185051
A28: Luis Suárez | C28: No | E28: Spain | G28: 118 | H28: =100/G28 -> 0.8474576271 | I28: https://www.transfermarkt.com/luis-suarez/profil/spieler/44352
A29: Ferenc Puskás | C29: Yes | E29: Hungary | G29: 119 | H29: =100/G29 -> 0.8403361345 | I29: https://twitter.com/Bf2015Roly/status/1705749870001221857
A30: Hughie Gallacher | C30: No | E30: England | G30: 120 | H30: =100/G30 -> 0.8333333333 | I30: https://www.ogol.com.br/jogador/hughie-gallacher/208170
A31: Giuseppe Meazza | C31: Yes | E31: Italy | G31: 121 | H31: =100/G31 -> 0.826446281 | I31: https://www.transfermarkt.com/giuseppe-meazza/profil/spieler/183779
A32: István Nyers | C32: No | E32: Italy | G32: 121 | H32: =100/G32 -> 0.826446281 | I32: https://www.ogol.com.br/jogador/istvan-nyers/42582
A33: Salif Keita | C33: Yes | E33: France | G33: 124 | H33: =100/G33 -> 0.8064516129 | I33: https://www.transfermarkt.com/salif-keita/leistungsdaten/spieler/224015
A34: Omar Sívori | C34: No | E34: Italy | G34: 129 | H34: =100/G34 -> 0.7751937984 | I34: https://www.ogol.com.br/jogador/omar-sivori
A35: Ronaldo Nazário | C35: No | E35: Spain | G35: 131 | H35: =100/G35 -> 0.7633587786 | I35: https://www.transfermarkt.com/ronaldo/profil/spieler/3140
A36: László Kubala | C36: No | E36: Spain | G36: 132 | H36: =100/G36 -> 0.7575757576 | I36: https://www.transfermarkt.com/laszlo-kubala/profil/spieler/156145
A37: Jimmy Greaves | C37: Yes | E37: England | G37: 133 | H37: =100/G37 -> 0.7518796992 | I37: https://www.ogol.com.br/jogador/jimmy-greaves/26151
A38: Klaas-Jan Huntelaar | C38: Yes | E38: Holland | G38: 136 | H38: =100/G38 -> 0.7352941176 | I38: https://www.transfermarkt.com/klaas-jan-huntelaar/leistungsdaten/spieler/4357
A39: Gerd Müller | C39: No | E39: Germany | G39: 136 | H39: =100/G39 -> 0.7352941176 | I39: https://www.transfermarkt.com/gerd-muller/profil/spieler/35604
A40: Delio Onnis | C40: Yes | E40: France | G40: 137 | H40: =100/G40 -> 0.7299270073 | I40: https://www.transfermarkt.com/delio-onnis/profil/spieler/140864
A41: Felice Borel | C41: Yes | E41: Italy | G41: 139 | H41: =100/G41 -> 0.7194244604 | I41: https://www.transfermarkt.com/felice-borel/leistungsdaten/spieler/237858
A42: Lothar Emmerich | C42: No | E42: Germany | G42: 140 | H42: =100/G42 -> 0.7142857143 | I42: https://www.transfermarkt.com/lothar-emmerich/profil/spieler/96563
A43: Harry Kane | C43: Yes | E43: England | G43: 141 | H43: =100/G43 -> 0.7092198582 | I43: https://www.transfermarkt.com/harry-kane/profil/spieler/132098
A44: Kylian Mbappé | C44: Yes | E44: France | G44: 142 | H44: =100/G44 -> 0.7042253521 | I44: https://www.transfermarkt.com/kylian-mbappe/profil/spieler/342229
A45: Robert Lewandowsky | C45: No | E45: Germany | G45: 143 | H45: =100/G45 -> 0.6993006993 | I45: https://www.transfermarkt.com/robert-lewandowski/leistungsdaten/spieler/38253
A46: Edinson Cavani | C46: No | E46: France | G46: 144 | H46: =100/G46 -> 0.6944444444 | I46: https://www.transfermarkt.com/edinson-cavani/profil/spieler/48280
A47: Giuseppe Signori | C47: No | E47: Italy | G47: 144 | H47: =100/G47 -> 0.6944444444 | I47: https://www.transfermarkt.com/giuseppe-signori/profil/spieler/3526
A48: Sergio Aguero | C48: No | E48: England | G48: 147 | H48: =100/G48 -> 0.6802721088 | I48: https://www.transfermarkt.com/sergio-aguero/profil/spieler/26399
A49: Gonzalo Higuaín | C49: No | E49: Italy | G49: 153 | H49: =100/G49 -> 0.6535947712 | I49: https://www.transfermarkt.com/gonzalo-higuain/profil/spieler/39153
A50: Lionel Messi | C50: Yes | E50: Spain | G50: 154 | H50: =100/G50 -> 0.6493506494 | I50: https://www.messivsronaldo.app/match-histories/messi-match-history/
A51: David Trézéguet | C51: No | E51: Italy | G51: 155 | H51: =100/G51 -> 0.6451612903 | I51: https://www.transfermarkt.com/david-trezeguet/profil/spieler/4146
A52: Uwe Seeler | C52: No | E52: Germany | G52: 157 | H52: =100/G52 -> 0.6369426752 | I52: https://www.transfermarkt.com/uwe-seeler/profil/spieler/38191
A53: Christian Vieri | C53: Yes | E53: Italy | G53: 158 | H53: =100/G53 -> 0.6329113924 | I53: https://www.transfermarkt.com/christian-vieri/profil/spieler/5797
A54: Michael Owen | C54: No | E54: England | G54: 158 | H54: =100/G54 -> 0.6329113924 | I54: https://www.transfermarkt.com/michael-owen/profil/spieler/1397
A55: Gabriel Batistuta | C55: No | E55: Italy | G55: 159 | H55: =100/G55 -> 0.6289308176 | I55: https://www.transfermarkt.com/gabriel-batistuta/profil/spieler/5959
A56: Thierry Henry | C56: No | E56: England | G56: 160 | H56: =100/G56 -> 0.625 | I56: https://www.transfermarkt.com/thierry-henry/profil/spieler/3207
A57: Horst Hrubesch | C57: No | E57: Germany | G57: 160 | H57: =100/G57 -> 0.625 | I57: https://www.transfermarkt.com/horst-hrubesch/profil/spieler/85456
A58: Rudi Völler | C58: No | E58: Germany | G58: 161 | H58: =100/G58 -> 0.6211180124 | I58: https://www.transfermarkt.com/rudi-voller/profil/spieler/13775
A59: Mohamed Salah | C59: No | E59: England | G59: 162 | H59: =100/G59 -> 0.6172839506 | I59: https://www.transfermarkt.com/mohamed-salah/profil/spieler/148455
A60: Andriy Shevchenko | C60: No | E60: Italy | G60: 162 | H60: =100/G60 -> 0.6172839506 | I60: https://www.transfermarkt.com/andriy-shevchenko/profil/spieler/3522
A61: Jean-Pierre Papin | C61: No | E61: France | G61: 164 | H61: =100/G61 -> 0.6097560976 | I61: https://www.transfermarkt.com/jean-pierre-papin/leistungsdaten/spieler/17168
A62: Ian Rush | C62: No | E62: England | G62: 169 | H62: =100/G62 -> 0.5917159763 | I62: https://www.transfermarkt.com/ian-rush/profil/spieler/145743
A63: Hugo Sánchez | C63: No | E63: Spain | G63: 170 | H63: =100/G63 -> 0.5882352941 | I63: https://www.transfermarkt.com/hugo-sanchez/profil/spieler/84528
A64: Robbie Fowler | C64: Yes | E64: England | G64: 175 | H64: =100/G64 -> 0.5714285714 | I64: https://www.transfermarkt.com/robbie-fowler/leistungsdaten/spieler/3225
A65: Klaus Fischer | C65: Yes | E65: Germany | G65: 176 | H65: =100/G65 -> 0.5681818182 | I65: https://www.transfermarkt.com/klaus-fischer/profil/spieler/84173
A66: Gonzalo Higuaín | C66: No | E66: Spain | G66: 179 | H66: =100/G66 -> 0.5586592179 | I66: https://www.transfermarkt.com/gonzalo-higuain/profil/spieler/39153
A67: Andy Cole | C67: No | E67: England | G67: 181 | H67: =100/G67 -> 0.5524861878 | I67: https://www.transfermarkt.com/andy-cole/profil/spieler/3238
A68: Héctor De Bourgoing | C68: No | E68: France | G68: 181 | H68: =100/G68 -> 0.5524861878 | I68: https://www.transfermarkt.com/hector-de-bourgoing/profil/spieler/236051
A69: Adrián Escudero | C69: Yes | E69: Spain | G69: 186 | H69: =100/G69 -> 0.5376344086 | I69: https://www.ogol.com.br/jogador/adrian-escudero/194736
A70: Ciro Immobile | C70: No | E70: Italy | G70: 189 | H70: =100/G70 -> 0.5291005291 | I70: https://www.transfermarkt.com/ciro-immobile/profil/spieler/105521
A71: Zlatan Ibrahimovic | C71: No | E71: Italy | G71: 196 | H71: =100/G71 -> 0.5102040816 | I71: https://www.transfermarkt.com/zlatan-ibrahimovi%C4%87/profil/spieler/3455
A72: Jacky Vergnes | C72: Yes | E72: France | G72: 197 | H72: =100/G72 -> 0.5076142132 | I72: https://www.transfermarkt.com/jacky-vergnes/profil/spieler/328794
A73: Edinson Cavani | C73: No | E73: Italy | G73: 198 | H73: =100/G73 -> 0.5050505051 | I73: https://www.transfermarkt.com/edinson-cavani/profil/spieler/48280
A74: Samuel Eto’o | C74: Yes | E74: Spain | G74: 199 | H74: =100/G74 -> 0.5025125628 | I74: https://www.ogol.com.br/jogador/samuel-eto-o/927
A75: Luis Aragonés | C75: No | E75: Spain | G75: 199 | H75: =100/G75 -> 0.5025125628 | I75: https://www.ogol.com.br/jogador/luis-aragones/49477
A76: Karim Benzema | C76: No | E76: Spain | G76: 202 | H76: =100/G76 -> 0.495049505 | I76: https://www.transfermarkt.com/karim-benzema/profil/spieler/18922
A77: Alexandre Lacazette | C77: Yes | E77: France | G77: 202 | H77: =100/G77 -> 0.495049505 | I77: https://www.transfermarkt.com/alexandre-lacazette/profil/spieler/93720
A78: Juan Arza | C78: No | E78: Spain | G78: 205 | H78: =100/G78 -> 0.487804878 | I78: https://www.ogol.com.br/jogador/juan-arza/210613
A79: Iago Aspas | C79: No | E79: Spain | G79: 208 | H79: =100/G79 -> 0.4807692308 | I79: https://www.transfermarkt.com/iago-aspas/profil/spieler/72047
A80: Miroslav Klose | C80: Yes | E80: Germany | G80: 212 | H80: =100/G80 -> 0.4716981132 | I80: https://www.transfermarkt.com/miroslav-klose/profil/spieler/10
A81: Alan Shearer | C81: Yes | E81: England | G81: 213 | H81: =100/G81 -> 0.4694835681 | I81: https://www.transfermarkt.com/alan-shearer/profil/spieler/3110
A82: Romelu Lukaku | C82: No | E82: England | G82: 216 | H82: =100/G82 -> 0.462962963 | I82: https://www.transfermarkt.com/romelu-lukaku/profil/spieler/96341
A83: Wissam Ben Yedder | C83: Yes | E83: France | G83: 216 | H83: =100/G83 -> 0.462962963 | I83: https://www.transfermarkt.com/wissam-ben-yedder/profil/spieler/146854
A84: Jupp Heynckes | C84: Yes | E84: Germany | G84: 222 | H84: =100/G84 -> 0.4504504505 | I84: https://www.transfermarkt.com/jupp-heynckes/profil/spieler/97301
A85: Hakan Şükür | C85: Yes | E85: Turkey | G85: 222 | H85: =100/G85 -> 0.4504504505 | I85: https://www.transfermarkt.com/hakan-sukur/profil/spieler/3363
A86: Santillana | C86: No | E86: Spain | G86: 223 | H86: =100/G86 -> 0.4484304933 | I86: https://www.transfermarkt.com/santillana/leistungsdaten/spieler/135092
A87: Cristiano Ronaldo | C87: No | E87: England | G87: 223 | H87: =100/G87 -> 0.4484304933 | I87: https://www.messivsronaldo.app/match-histories/ronaldo-match-history/
A88: Fleury Di Nallo | C88: Yes | E88: France | G88: 244 | H88: =100/G88 -> 0.4098360656 | I88: https://www.transfermarkt.com/fleury-di-nallo/leistungsdaten/spieler/301148
A89: Wayne Rooney | C89: Yes | E89: England | G89: 246 | H89: =100/G89 -> 0.406504065 | I89: https://www.transfermarkt.com/wayne-rooney/leistungsdaten/spieler/3332
A90: Antoine Griezmann | C90: Yes | E90: Spain | G90: 247 | H90: =100/G90 -> 0.4048582996 | I90: https://www.transfermarkt.com/antoine-griezmann/profil/spieler/125781
A91: Antonio Di Natale | C91: No | E91: Italy | G91: 251 | H91: =100/G91 -> 0.3984063745 | I91: https://www.transfermarkt.com/antonio-di-natale/profil/spieler/6031

Sheet Fastest 150
A1: Fastest players to reach 150 League goals in any ONE league (fewest games needed)
A3: Player | C3: Begining Career? | E3: Country | G3: Games | H3: Goal Ratio | I3: Source
A5: Fernando Peyroteo | C5: Yes | E5: Portugal | G5: 81 | H5: =150/G5 -> 1.851851852 | I5: https://www.ogol.com.br/jogador/fernando-peyroteo/29984
A6: George Smith | C6: Yes | E6: Australia | G6: 82 | H6: =150/G6 -> 1.829268293 | I6: https://twitter.com/FredericksBrent/status/1737957953339109383
A7: Josef Bican | C7: Yes | E7: Austria | G7: 90 | H7: =150/G7 -> 1.666666667 | I7: https://twitter.com/deivi_cisarro/status/1706003217304129594
A8: Jack Hughes | C8: Yes | E8: Australia | G8: 116 | H8: =150/G8 -> 1.293103448 | I8: https://twitter.com/FredericksBrent/status/1736778329020068001
A9: Reginald Date | C9: Yes | E9: Australia | G9: 119 | H9: =150/G9 -> 1.260504202 | I9: https://twitter.com/FredericksBrent/status/1736781622391820450
A10: Eusébio | C10: No | E10: Portugal | G10: 127 | H10: =150/G10 -> 1.181102362 | I10: https://www.ogol.com.br/jogador/eusebio
A11: Cristiano Ronaldo | C11: No | E11: Spain | G11: 140 | H11: =150/G11 -> 1.071428571 | I11: https://www.messivsronaldo.app/match-histories/ronaldo-match-history/
A12: Dixie Dean | C12: No | E12: England | G12: 147 | H12: =150/G12 -> 1.020408163 | I12: https://www.ogol.com.br/jogador/dixie-dean/35098
A13: Sandor Kocsis | C13: Yes | E13: Hungary | G13: 148 | H13: =150/G13 -> 1.013513514 | I13: https://twitter.com/Bf2015Roly/status/1732836372124185051
A14: Ferenc Puskás | C14: Yes | E14: Hungary | G14: 152 | H14: =150/G14 -> 0.9868421053 | I14: https://twitter.com/Bf2015Roly/status/1705749870001221857
A15: David Halliday | C15: No | E15: England | G15: 153 | H15: =150/G15 -> 0.9803921569 | I15: https://www.ogol.com.br/jogador/david-halliday/208181
A16: Telmo Zarra | C16: Yes | E16: Spain | G16: 160 | H16: =150/G16 -> 0.9375 | I16: https://www.transfermarkt.com/telmo-zarra/profil/spieler/135777
A17: Ferenc Puskás | C17: Special (banned 2 years) | E17: Spain | G17: 169 | H17: =150/G17 -> 0.8875739645 | I17: https://twitter.com/Bf2015Roly/status/1705749870001221857
A18: Carlos Bianchi | C18: No | E18: France | G18: 172 | H18: =150/G18 -> 0.8720930233 | I18: https://www.transfermarkt.com/carlos-bianchi/profil/spieler/155070
A19: Alfredo Di Stefano | C19: No | E19: Spain | G19: 175 | H19: =150/G19 -> 0.8571428571 | I19: https://twitter.com/Bf2015Roly/status/1705749870001221857
A20: Josip Skoblar | C20: No | E20: France | G20: 175 | H20: =150/G20 -> 0.8571428571 | I20: https://www.transfermarkt.com/josip-skoblar/profil/spieler/102785
A21: Jack Bowers | C21: No | E21: England | G21: 179 | H21: =150/G21 -> 0.8379888268 | I21: https://www.ogol.com.br/jogador/jack-bowers/360427
A22: Gunnar Nordahl | C22: No | E22: Italy | G22: 180 | H22: =150/G22 -> 0.8333333333 | I22: https://www.transfermarkt.com/gunnar-nordahl/profil/spieler/140644
A23: Jimmy Greaves | C23: Yes | E23: England | G23: 183 | H23: =150/G23 -> 0.8196721311 | I23: https://www.ogol.com.br/jogador/jimmy-greaves/26151
A24: Giuseppe Meazza | C24: Yes | E24: Italy | G24: 185 | H24: =150/G24 -> 0.8108108108 | I24: https://www.transfermarkt.com/giuseppe-meazza/profil/spieler/183779
A25: Hughie Gallacher | C25: No | E25: England | G25: 192 | H25: =150/G25 -> 0.78125 | I25: https://www.ogol.com.br/jogador/hughie-gallacher/208170
A26: Gerd Müller | C26: No | E26: Germany | G26: 192 | H26: =150/G26 -> 0.78125 | I26: https://www.transfermarkt.com/gerd-muller/profil/spieler/35604
A27: Johan Cruyff | C27: Yes | E27: Holland | G27: 192 | H27: =150/G27 -> 0.78125 | I27: https://www.ogol.com.br/jogador/johan-cruyff
A28: Delio Onnis | C28: Yes | E28: France | G28: 194 | H28: =150/G28 -> 0.7731958763 | I28: https://www.transfermarkt.com/delio-onnis/profil/spieler/140864
A29: Kylian Mbappé | C29: Yes | E29: France | G29: 199 | H29: =150/G29 -> 0.7537688442 | I29: https://www.transfermarkt.com/kylian-mbappe/profil/spieler/342229
A30: Luis Suárez | C30: No | E30: Spain | G30: 200 | H30: =150/G30 -> 0.75 | I30: https://www.transfermarkt.com/luis-suarez/profil/spieler/44352
A31: Lionel Messi | C31: Yes | E31: Spain | G31: 203 | H31: =150/G31 -> 0.7389162562 | I31: https://www.messivsronaldo.app/match-histories/messi-match-history/
A32: Sergio Aguero | C32: No | E32: England | G32: 217 | H32: =150/G32 -> 0.6912442396 | I32: https://www.transfermarkt.com/sergio-aguero/profil/spieler/26399
A33: István Nyers | C33: No | E33: Italy | G33: 219 | H33: =150/G33 -> 0.6849315068 | I33: https://www.ogol.com.br/jogador/istvan-nyers/42582
A34: Thierry Henry | C34: No | E34: England | G34: 220 | H34: =150/G34 -> 0.6818181818 | I34: https://www.transfermarkt.com/thierry-henry/profil/spieler/3207
A35: Harry Kane | C35: Yes | E35: England | G35: 221 | H35: =150/G35 -> 0.6787330317 | I35: https://www.transfermarkt.com/harry-kane/profil/spieler/132098
A36: Robert Lewandowsky | C36: No | E36: Germany | G36: 226 | H36: =150/G36 -> 0.6637168142 | I36: https://www.transfermarkt.com/robert-lewandowski/leistungsdaten/spieler/38253
A37: Klaas-Jan Huntelaar | C37: Yes | E37: Holland | G37: 230 | H37: =150/G37 -> 0.652173913 | I37: https://www.transfermarkt.com/klaas-jan-huntelaar/leistungsdaten/spieler/4357
A38: Hugo Sánchez | C38: No | E38: Spain | G38: 236 | H38: =150/G38 -> 0.6355932203 | I38: https://www.transfermarkt.com/hugo-sanchez/profil/spieler/84528
A39: Gabriel Batistuta | C39: No | E39: Italy | G39: 243 | H39: =150/G39 -> 0.6172839506 | I39: https://www.transfermarkt.com/gabriel-batistuta/profil/spieler/5959
A40: Jean-Pierre Papin | C40: No | E40: France | G40: 247 | H40: =150/G40 -> 0.6072874494 | I40: https://www.transfermarkt.com/jean-pierre-papin/leistungsdaten/spieler/17168
A41: Mohamed Salah | C41: No | E41: England | G41: 247 | H41: =150/G41 -> 0.6072874494 | I41: https://www.transfermarkt.com/mohamed-salah/profil/spieler/148455
A42: Ian Rush | C42: No | E42: England | G42: 256 | H42: =150/G42 -> 0.5859375 | I42: https://www.transfermarkt.com/ian-rush/profil/spieler/145743
A43: Giuseppe Signori | C43: No | E43: Italy | G43: 259 | H43: =150/G43 -> 0.5791505792 | I43: https://www.transfermarkt.com/giuseppe-signori/profil/spieler/3526
A44: Samuel Eto’o | C44: Yes | E44: Spain | G44: 263 | H44: =150/G44 -> 0.5703422053 | I44: https://www.ogol.com.br/jogador/samuel-eto-o/927
A45: Zlatan Ibrahimovic | C45: No | E45: Italy | G45: 263 | H45: =150/G45 -> 0.5703422053 | I45: https://www.transfermarkt.com/zlatan-ibrahimovi%C4%87/profil/spieler/3455
A46: Hakan Şükür | C46: Yes | E46: Turkey | G46: 269 | H46: =150/G46 -> 0.5576208178 | I46: https://www.transfermarkt.com/hakan-sukur/profil/spieler/3363
A47: Juan Arza | C47: No | E47: Spain | G47: 270 | H47: =150/G47 -> 0.5555555556 | I47: https://www.ogol.com.br/jogador/juan-arza/210613
A48: Adrián Escudero | C48: Yes | E48: Spain | G48: 287 | H48: =150/G48 -> 0.5226480836 | I48: https://www.ogol.com.br/jogador/adrian-escudero/194736
A49: Wissam Ben Yedder | C49: Yes | E49: France | G49: 296 | H49: =150/G49 -> 0.5067567568 | I49: https://www.transfermarkt.com/wissam-ben-yedder/profil/spieler/146854
A50: Michael Owen | C50: No | E50: England | G50: 296 | H50: =150/G50 -> 0.5067567568 | I50: https://www.transfermarkt.com/michael-owen/profil/spieler/1397
A51: Jacky Vergnes | C51: Yes | E51: France | G51: 314 | H51: =150/G51 -> 0.4777070064 | I51: https://www.transfermarkt.com/jacky-vergnes/profil/spieler/328794
A52: Antonio Di Natale | C52: No | E52: Italy | G52: 317 | H52: =150/G52 -> 0.4731861199 | I52: https://www.transfermarkt.com/antonio-di-natale/profil/spieler/6031
A53: Santillana | C53: No | E53: Spain | G53: 319 | H53: =150/G53 -> 0.4702194357 | I53: https://www.transfermarkt.com/santillana/leistungsdaten/spieler/135092
A54: Wayne Rooney | C54: Yes | E54: England | G54: 330 | H54: =150/G54 -> 0.4545454545 | I54: https://www.transfermarkt.com/wayne-rooney/leistungsdaten/spieler/3332
A55: Robbie Fowler | C55: Yes | E55: England | G55: 333 | H55: =150/G55 -> 0.4504504505 | I55: https://www.transfermarkt.com/robbie-fowler/leistungsdaten/spieler/3225
A56: Fleury Di Nallo | C56: Yes | E56: France | G56: 339 | H56: =150/G56 -> 0.4424778761 | I56: https://www.transfermarkt.com/fleury-di-nallo/leistungsdaten/spieler/301148
A57: Antoine Griezmann | C57: Yes | E57: Spain | G57: 381 | H57: =150/G57 -> 0.3937007874 | I57: https://www.transfermarkt.com/antoine-griezmann/profil/spieler/125781
